fUSD/lending_fUSD_20260701
["ID","MTS","AMOUNT","RATE_DAILY","PERIOD"]
[426800211,1782838247000,-221.6554765,0.000354,2]
[426800217,1782838247000,-178.18248126,0.000354,30]
[426800213,1782838247000,-178.18248126,0.000354,30]
[426800210,1782838247000,-200.0,0.000354,14]
[426800215,1782838247000,-178.18248126,0.000354,30]
[426800214,1782838247000,-178.18248126,0.000354,30]
[426800226,1782838247000,-178.18248126,0.000354,30]
[426800234,1782838247000,-14014.94696749,0.000354,2]
[426800221,1782838247000,-178.18248126,0.000354,30]
[426800232,1782838247000,-1506.569734,0.000354,18]
[426800227,1782838247000,-178.18248126,0.000354,30]
[426800216,1782838247000,-178.18248126,0.000354,30]
[426800209,1782838247000,-244.74,0.000354,2]
[426800218,1782838247000,-178.18248126,0.000354,30]
[426800222,1782838247000,-178.18248126,0.000354,30]
[426800269,1782838248000,-1101.13386496,0.00033381,2]
[426800268,1782838248000,-4502.00789222,0.000355,120]
[426800261,1782838248000,-317.0,0.000355,120]
[426800266,1782838248000,-5867.37946505,0.000355,120]
[426800262,1782838248000,-975.13,0.000355,120]
[426800264,1782838248000,-329.16,0.000355,120]
[426800263,1782838248000,-614.0,0.000355,120]
[426800267,1782838248000,-5840.08504762,0.000355,120]
[426800265,1782838248000,-1980.44868095,0.000355,120]
[426800260,1782838248000,-806.5,0.000355,120]
[426800272,1782838248000,-16175.21292884,0.000355,120]
[426800270,1782838248000,-2836.36664266,0.000355,120]
[426800275,1782838248000,-172.99635797,0.00013945,2]
[426800273,1782838248000,-590.59475948,0.000355,120]
[426800274,1782838248000,-327.00364203,0.00013945,2]
[426800276,1782838248000,-300.0,0.00033381,2]
[426800279,1782838248000,-161971.77158276,0.000355,120]
[426800278,1782838248000,-18583.27415517,0.000355,120]
[426800277,1782838248000,-195792.70849845,0.000355,120]
[426800280,1782838248000,-1807.91,0.00027397,10]
[426800271,1782838248000,-2356.57543423,0.000355,120]
[426800292,1782838249000,-200.0,0.00033804,2]
[426800294,1782838249000,-200.0,0.00033804,2]
[426800302,1782838249000,-15498.08307,0.000355,120]
[426800299,1782838249000,-200.0,0.00033804,2]
[426800296,1782838249000,-200.0,0.00033804,2]
[426800295,1782838249000,-200.0,0.00033804,2]
[426800293,1782838249000,-200.0,0.00033804,2]
[426800300,1782838249000,-200.0,0.00033804,2]
[426800287,1782838249000,-200.0,0.00033804,2]
[426800288,1782838249000,-200.0,0.00033804,2]
[426800286,1782838249000,-12937.045343,0.00033725,2]
[426800291,1782838249000,-200.0,0.00033804,2]
[426800289,1782838249000,-200.0,0.00033804,2]
[426800285,1782838249000,-300.0,0.00033381,2]
[426800283,1782838249000,-300.0,0.00033381,2]
[426800284,1782838249000,-300.0,0.00033381,2]
[426800282,1782838249000,-152.0,0.00030447,120]
[426800281,1782838249000,-25523.61,0.00027397,10]
[426800297,1782838249000,-200.0,0.00033804,2]
[426800290,1782838249000,-200.0,0.00033804,2]
[426800298,1782838249000,-200.0,0.00033804,2]
[426800323,1782838249000,-7234.3304733,0.000355,120]
[426800303,1782838249000,-6088.0,0.0002009,2]
[426800320,1782838249000,-16.5250781,0.00033804,2]
[426800321,1782838249000,-183.4749219,0.00033804,2]
[426800324,1782838249000,-790.70620023,0.000355,120]
[426800314,1782838249000,-200.0,0.00033804,2]
[426800313,1782838249000,-200.0,0.00033804,2]
[426800312,1782838249000,-200.0,0.00033804,2]
[426800317,1782838249000,-200.0,0.00033804,2]
[426800311,1782838249000,-200.0,0.00033804,2]
[426800309,1782838249000,-672.0,0.00033392,5]
[426800322,1782838249000,-207.9949845,0.000352,120]
[426800318,1782838249000,-200.0,0.00033804,2]
[426800315,1782838249000,-200.0,0.00033804,2]
[426800304,1782838249000,-6088.0,0.0002309,2]
[426800306,1782838249000,-300.0,0.00033381,2]
[426800305,1782838249000,-6088.0,0.0002609,2]
[426800301,1782838249000,-589.261587,0.000354,18]
[426800308,1782838249000,-300.0,0.00033381,2]
[426800316,1782838249000,-200.0,0.00033804,2]
[426800319,1782838249000,-200.0,0.00033804,2]
[426800310,1782838249000,-200.0,0.00033804,2]
[426800307,1782838249000,-300.0,0.00033381,2]
[426800325,1782838250000,-1361.39009554,0.000355,120]
[426800333,1782838265000,300.0,0.00029556,120]
[426800334,1782838266000,300.0,0.00027133,120]
[426800337,1782838266000,300.0,0.00029397,120]
[426800336,1782838266000,300.0,0.00029397,120]
[426800335,1782838266000,300.0,0.00029397,120]
[426800339,1782838267000,2500.0,0.00029556,120]
[426800338,1782838267000,198.47885279,0.00029556,120]
[426800341,1782838268000,2618.85385537,0.00029397,120]
[426800340,1782838268000,2500.0,0.00027133,120]
[426800342,1782838335000,152.0,0.00026145,120]
[426800359,1782838541000,150.39,0.00029232,30]
[426800360,1782838542000,169.18,0.0002831,30]
[426800362,1782838582000,161.990108,0.0002842,120]
[426800367,1782838647000,180.40335627,0.00010469,2]
[426800374,1782838881000,155.0,0.00028554,30]
[426800375,1782838883000,155.0,0.00029554,30]
[426800376,1782838896000,10000.0,0.00030137,30]
[426800377,1782838902000,10000.0,0.00030137,30]
[426800378,1782838908000,10000.0,0.00030137,30]
[426800379,1782838917000,166.0,0.00028554,30]
[426800380,1782838919000,166.0,0.00029554,30]
[426800381,1782839011000,5855.63,0.00030137,30]
[426800382,1782839019000,5855.63,0.00030137,30]
[426800383,1782839033000,172.0,0.00028622,30]
[426800384,1782839035000,172.0,0.00029622,30]
[426800385,1782839153000,599.0,0.00028622,30]
[426800386,1782839155000,599.0,0.00029622,30]
[426800387,1782839204000,220.49999991,0.00025179,30]
[426800388,1782839319000,150.0,0.00013839,120]
[426800408,1782839431000,-9482.79625847,0.00014,2]
[426800405,1782839431000,-500.0,0.00013999,2]
[426800404,1782839431000,-500.0,0.00013999,2]
[426800397,1782839431000,-600.0,0.00013824,2]
[426800407,1782839431000,-15720.65519529,0.00014,2]
[426800403,1782839431000,-150.0,0.00013996,2]
[426800402,1782839431000,-200.0,0.00013935,2]
[426800399,1782839431000,-600.0,0.00013824,2]
[426800396,1782839431000,-300.0,0.00013757,2]
[426800391,1782839431000,-36.43320464,0.00013699,2]
[426800398,1782839431000,-600.0,0.00013824,2]
[426800395,1782839431000,-300.0,0.00013757,2]
[426800394,1782839431000,-300.0,0.00013757,2]
[426800393,1782839431000,-249.6960079,0.00013699,2]
[426800392,1782839431000,-282.50745447,0.00013699,2]
[426800390,1782839431000,-159.52950513,0.00013593,2]
[426800389,1782839431000,-221.53729023,0.00013488,2]
[426800409,1782839431000,-1172.94,0.00014094,2]
[426800400,1782839431000,-600.0,0.00013824,2]
[426800406,1782839431000,-648.22607912,0.00013999,2]
[426800401,1782839431000,-150.0,0.00013839,2]
[426800411,1782839431000,-394.03,0.00014179,2]
[426800410,1782839431000,-151.0,0.0001417,2]
[426800430,1782839431000,-549.395,0.00014887,2]
[426800427,1782839431000,-1501.85277768,0.00014887,2]
[426800428,1782839431000,-1243.66173485,0.00014887,2]
[426800426,1782839431000,-53737.09133428,0.00014887,2]
[426800425,1782839431000,-1873.275,0.00014859,2]
[426800421,1782839431000,-166.55145681,0.00014836,2]
[426800417,1782839431000,-1196.07144451,0.000148,2]
[426800422,1782839431000,-300.0,0.00014836,2]
[426800418,1782839431000,-600.0,0.00014836,2]
[426800429,1782839431000,-328.1768,0.00014887,2]
[426800424,1782839431000,-150.0,0.00014859,2]
[426800423,1782839431000,-250.0,0.00014836,2]
[426800412,1782839431000,-1172.94,0.00014446,2]
[426800414,1782839431000,-150.0,0.00014641,2]
[426800419,1782839431000,-300.0,0.00014836,2]
[426800415,1782839431000,-5800.0,0.000147,2]
[426800416,1782839431000,-1172.94,0.00014799,2]
[426800413,1782839431000,-151.0,0.00014641,2]
[426800420,1782839431000,-250.0,0.00014836,2]
[426800450,1782839437000,-230.0,0.00013996,2]
[426800451,1782839437000,-31.5289737,0.00014887,2]
[426800454,1782839437000,-1068.46209076,0.00014887,2]
[426800453,1782839437000,-2927.5,0.00014887,2]
[426800452,1782839437000,-3837.68007642,0.00014887,2]
[426800457,1782839437000,-2000.0,0.000149,2]
[426800455,1782839437000,-5855.92747178,0.00014887,2]
[426800460,1782839437000,-332.90284873,0.000149,2]
[426800459,1782839437000,-500.0,0.000149,2]
[426800456,1782839437000,-11585.20328158,0.00014887,2]
[426800458,1782839437000,-3110.51020948,0.000149,2]
[426800489,1782839438000,-1172.94,0.00015151,2]
[426800491,1782839438000,-183.55,0.00015326,2]
[426800497,1782839438000,-281.06313223,0.00016011,3]
[426800492,1782839438000,-1172.94,0.00015504,2]
[426800512,1782839438000,-1244.77633916,0.0001789,2]
[426800495,1782839438000,-2281.34821548,0.00015807,2]
[426800498,1782839438000,-424.24749189,0.000161,2]
[426800496,1782839438000,-424.24749189,0.00016,2]
[426800494,1782839438000,-450.0,0.0001558,2]
[426800493,1782839438000,-169.92,0.00015506,2]
[426800502,1782839438000,-433.0,0.00016319,2]
[426800503,1782839438000,-200.0,0.0001634,2]
[426800505,1782839438000,-1000.0,0.000165,2]
[426800509,1782839438000,-736.0,0.00017635,2]
[426800508,1782839438000,-1786.63,0.00017315,2]
[426800506,1782839438000,-171.64,0.00016712,2]
[426800507,1782839438000,-450.0,0.0001695,2]
[426800504,1782839438000,-300.0,0.00016437,2]
[426800510,1782839438000,-796.46714401,0.000177,2]
[426800511,1782839438000,-500.0,0.00017824,2]
[426800522,1782839438000,-166.66,0.0001926,2]
[426800516,1782839438000,-166.66,0.00018871,2]
[426800524,1782839438000,-213.0,0.00019274,2]
[426800500,1782839438000,-424.24749189,0.000162,2]
[426800515,1782839438000,-166.66,0.00018482,2]
[426800514,1782839438000,-169.92,0.00018065,2]
[426800474,1782839438000,-307.53264687,0.00014999,2]
[426800486,1782839438000,-173.54543376,0.00015038,2]
[426800525,1782839438000,-302.46,0.00019274,2]
[426800461,1782839438000,-572.38767175,0.000149,2]
[426800463,1782839438000,-11901.46492317,0.000149,2]
[426800465,1782839438000,-164.20104984,0.0001499,2]
[426800462,1782839438000,-2500.0,0.000149,2]
[426800464,1782839438000,-164.20104984,0.0001499,2]
[426800466,1782839438000,-500.0,0.00014999,2]
[426800467,1782839438000,-500.0,0.00014999,2]
[426800475,1782839438000,-358.46735313,0.00014999,2]
[426800469,1782839438000,-500.0,0.00014999,2]
[426800476,1782839438000,-240.94424427,0.00014999,2]
[426800468,1782839438000,-500.0,0.00014999,2]
[426800483,1782839438000,-170.0,0.00015,2]
[426800470,1782839438000,-217.01388835,0.00014999,2]
[426800471,1782839438000,-282.98611165,0.00014999,2]
[426800473,1782839438000,-300.0,0.00014999,2]
[426800477,1782839438000,-59.05575573,0.00014999,2]
[426800479,1782839438000,-11210602.26478557,0.00015,2]
[426800478,1782839438000,-300.0,0.00014999,2]
[426800484,1782839438000,-170.2714225,0.00015,2]
[426800480,1782839438000,-6666290.88803107,0.00015,2]
[426800485,1782839438000,-500.0,0.00015018,2]
[426800487,1782839438000,-216.62538722,0.00015109,2]
[426800482,1782839438000,-170.0,0.00015,2]
[426800481,1782839438000,-429.8990304,0.00015,2]
[426800488,1782839438000,-255.0,0.00015116,2]
[426800472,1782839438000,-368.15336034,0.00014999,2]
[426800523,1782839438000,-150.0,0.00019274,2]
[426800490,1782839438000,-311.02716496,0.00015174,2]
[426800518,1782839438000,-917.05851709,0.00019,2]
[426800555,1782839438000,-283.0,0.00020139,2]
[426800554,1782839438000,-1362.0,0.00020139,2]
[426800552,1782839438000,-150.074,0.00020139,2]
[426800549,1782839438000,-162.48,0.00020013,2]
[426800559,1782839438000,-907.18256111,0.000202,2]
[426800556,1782839438000,-1231.0,0.00020139,2]
[426800558,1782839438000,-216.0,0.00020139,2]
[426800557,1782839438000,-6088.0,0.00020139,2]
[426800561,1782839438000,-166.66,0.00020427,2]
[426800565,1782839438000,-155.0,0.00021,2]
[426800572,1782839438000,-151.0,0.00021244,2]
[426800560,1782839438000,-907.18256111,0.000204,2]
[426800551,1782839438000,-1783.35,0.00020055,2]
[426800562,1782839438000,-500.0,0.0002063,2]
[426800566,1782839438000,-166.0,0.00021,2]
[426800564,1782839438000,-176.73593335,0.00021,2]
[426800563,1782839438000,-24405.88,0.00020951,2]
[426800567,1782839438000,-172.0,0.00021,2]
[426800569,1782839438000,-176.73593335,0.000212,2]
[426800568,1782839438000,-599.0,0.00021,2]
[426800570,1782839438000,-151.0,0.00021244,2]
[426800573,1782839438000,-151.0,0.00021244,2]
[426800575,1782839438000,-151.0,0.00021244,2]
[426800576,1782839438000,-151.0,0.00021244,2]
[426800574,1782839438000,-151.0,0.00021244,2]
[426800513,1782839438000,-45235.8109721,0.00018,2]
[426800571,1782839438000,-151.0,0.00021244,2]
[426800553,1782839438000,-1278.0,0.00020139,2]
[426800577,1782839438000,-151.0,0.00021244,2]
[426800548,1782839438000,-2000.0,0.0002,7]
[426800519,1782839438000,-578498.13971736,0.00019,2]
[426800520,1782839438000,-183.55,0.00019157,2]
[426800521,1782839438000,-201.0,0.00019182,3]
[426800517,1782839438000,-316.1320903,0.00018999,2]
[426800526,1782839438000,-153.72648767,0.00019274,2]
[426800528,1782839438000,-15085.45,0.00019339,2]
[426800529,1782839438000,-3107.86,0.00019339,2]
[426800550,1782839438000,-166.66,0.00020038,2]
[426800527,1782839438000,-4145.06,0.00019339,2]
[426800534,1782839438000,-913.4,0.00019339,2]
[426800533,1782839438000,-4999.99,0.00019339,2]
[426800536,1782839438000,-907.18256111,0.000196,2]
[426800532,1782839438000,-4946.35,0.00019339,2]
[426800530,1782839438000,-150.99,0.00019339,2]
[426800531,1782839438000,-9999.99,0.00019339,2]
[426800546,1782839438000,-599.0,0.0002,2]
[426800535,1782839438000,-154.58316497,0.000194,2]
[426800541,1782839438000,-510.1943185,0.0002,10]
[426800537,1782839438000,-166.66,0.00019649,2]
[426800543,1782839438000,-155.0,0.0002,2]
[426800542,1782839438000,-901.16687839,0.0002,2]
[426800538,1782839438000,-907.18256111,0.000198,2]
[426800545,1782839438000,-172.0,0.0002,2]
[426800539,1782839438000,-394.03,0.0001985,2]
[426800547,1782839438000,-822.0,0.0002,2]
[426800540,1782839438000,-907.18256111,0.0002,2]
[426800544,1782839438000,-166.0,0.0002,2]
[426800615,1782839439000,-216.0,0.00023139,2]
[426800614,1782839439000,-6088.0,0.00023139,2]
[426800612,1782839439000,-283.0,0.00023139,2]
[426800616,1782839439000,-2337.0,0.0002336,3]
[426800617,1782839439000,-150.0,0.00023394,7]
[426800607,1782839439000,-172.0,0.00023,2]
[426800611,1782839439000,-1362.0,0.00023139,2]
[426800610,1782839439000,-1278.0,0.00023139,2]
[426800609,1782839439000,-2337.0,0.0002304,3]
[426800613,1782839439000,-1231.0,0.00023139,2]
[426800618,1782839439000,-171.3274143,0.00023501,2]
[426800642,1782839439000,-219.62168865,0.00023631,2]
[426800623,1782839439000,-292.94553362,0.00023502,2]
[426800621,1782839439000,-156.99562843,0.00023502,2]
[426800625,1782839439000,-189.60910461,0.00023502,2]
[426800620,1782839439000,-159.76813337,0.00023502,2]
[426800619,1782839439000,-197.58410257,0.00023502,2]
[426800624,1782839439000,-171.55910658,0.00023502,2]
[426800627,1782839439000,-239.22588224,0.00023502,2]
[426800622,1782839439000,-246.13400623,0.00023502,2]
[426800626,1782839439000,-168.70765951,0.00023502,2]
[426800638,1782839439000,-198.3865749,0.00023631,2]
[426800630,1782839439000,-156.68418846,0.00023502,2]
[426800608,1782839439000,-599.0,0.00023,2]
[426800628,1782839439000,-167.72044849,0.00023502,2]
[426800596,1782839439000,-172.0,0.00022,2]
[426800592,1782839439000,-5000.0,0.00021918,2]
[426800606,1782839439000,-166.0,0.00023,2]
[426800631,1782839439000,-168.3593723,0.00023506,2]
[426800579,1782839439000,-151.0,0.00021244,2]
[426800578,1782839439000,-151.0,0.00021244,2]
[426800580,1782839439000,-151.0,0.00021244,2]
[426800581,1782839439000,-151.0,0.00021244,2]
[426800583,1782839439000,-151.0,0.00021244,2]
[426800582,1782839439000,-151.0,0.00021244,2]
[426800585,1782839439000,-151.0,0.00021244,2]
[426800586,1782839439000,-151.0,0.00021244,2]
[426800584,1782839439000,-151.0,0.00021244,2]
[426800588,1782839439000,-176.73593335,0.000214,2]
[426800587,1782839439000,-151.0,0.00021244,2]
[426800601,1782839439000,-389.17011466,0.00022533,2]
[426800590,1782839439000,-568.63666701,0.00021849,2]
[426800593,1782839439000,-160.0,0.00022,2]
[426800591,1782839439000,-176.73593335,0.000219,2]
[426800589,1782839439000,-176.73593335,0.000216,2]
[426800595,1782839439000,-166.0,0.00022,2]
[426800597,1782839439000,-599.0,0.00022,2]
[426800599,1782839439000,-1959.33,0.00022466,2]
[426800603,1782839439000,-1129.0,0.00022964,2]
[426800602,1782839439000,-161.990108,0.00022677,14]
[426800605,1782839439000,-155.0,0.00023,2]
[426800604,1782839439000,-183.55,0.00022988,2]
[426800598,1782839439000,-1089.97,0.00022466,2]
[426800600,1782839439000,-358.57,0.00022466,2]
[426800594,1782839439000,-155.0,0.00022,2]
[426800632,1782839439000,-156.89788617,0.00023506,2]
[426800635,1782839439000,-169.60476426,0.00023506,2]
[426800633,1782839439000,-187.7019765,0.00023506,2]
[426800670,1782839439000,-160.0,0.000242,3]
[426800671,1782839439000,-2337.0,0.000242,3]
[426800673,1782839439000,-160.0,0.0002452,3]
[426800677,1782839439000,-722.56,0.00024658,2]
[426800672,1782839439000,-150.23246267,0.00024506,7]
[426800676,1782839439000,-1000.0,0.00024658,2]
[426800674,1782839439000,-160.0,0.0002452,3]
[426800675,1782839439000,-2337.0,0.0002452,3]
[426800679,1782839439000,-172.65,0.00024658,2]
[426800678,1782839439000,-171.36,0.00024658,2]
[426800681,1782839439000,-395.16820514,0.00024754,2]
[426800680,1782839439000,-342.6548286,0.00024753,2]
[426800682,1782839439000,-319.53626675,0.00024754,2]
[426800684,1782839439000,-313.99125687,0.00024754,2]
[426800687,1782839439000,-343.11821316,0.00024754,2]
[426800685,1782839439000,-492.26801246,0.00024754,2]
[426800683,1782839439000,-158.29619818,0.00024754,2]
[426800686,1782839439000,-585.89106725,0.00024754,2]
[426800689,1782839439000,-218.36435051,0.00024754,2]
[426800690,1782839439000,-225.35130831,0.00024754,2]
[426800688,1782839439000,-379.21820922,0.00024754,2]
[426800691,1782839439000,-337.41531902,0.00024754,2]
[426800629,1782839439000,-268.75535654,0.00023502,2]
[426800694,1782839439000,-537.51071308,0.00024754,2]
[426800692,1782839439000,-478.45176447,0.00024754,2]
[426800669,1782839439000,-2337.0,0.000242,3]
[426800665,1782839439000,-3509.61,0.00024174,2]
[426800693,1782839439000,-335.44089699,0.00024754,2]
[426800663,1782839439000,-500.0,0.00024141,2]
[426800668,1782839439000,-22227.29,0.00024174,2]
[426800640,1782839439000,-166.07241082,0.00023631,2]
[426800637,1782839439000,-176.00740732,0.00023506,2]
[426800636,1782839439000,-162.38629236,0.00023506,2]
[426800656,1782839439000,-2337.0,0.00024,3]
[426800645,1782839439000,-169.83318008,0.00023631,2]
[426800655,1782839439000,-572.2002,0.00023921,7]
[426800653,1782839439000,-282.70312053,0.00023921,7]
[426800649,1782839439000,-164.85883288,0.00023631,2]
[426800650,1782839439000,-181.17808073,0.00023631,2]
[426800652,1782839439000,-203.51876525,0.00023631,2]
[426800647,1782839439000,-180.0927452,0.00023631,2]
[426800634,1782839439000,-170.22124283,0.00023506,2]
[426800654,1782839439000,-422.90696095,0.00023921,7]
[426800657,1782839439000,-165.7691721,0.00024,2]
[426800666,1782839439000,-718.94,0.00024174,2]
[426800662,1782839439000,-313.75,0.0002411,2]
[426800661,1782839439000,-953.73,0.0002411,2]
[426800658,1782839439000,-166.0,0.00024,2]
[426800664,1782839439000,-1786.63,0.00024164,2]
[426800659,1782839439000,-172.0,0.00024,2]
[426800651,1782839439000,-161.11009456,0.00023631,2]
[426800644,1782839439000,-222.49197864,0.00023631,2]
[426800648,1782839439000,-154.83126161,0.00023631,2]
[426800660,1782839439000,-599.0,0.00024,2]
[426800667,1782839439000,-1146.63,0.00024174,2]
[426800720,1782839440000,-362.35616146,0.00024887,2]
[426800732,1782839440000,-1274.0,0.0002548,3]
[426800718,1782839440000,-309.66252322,0.00024887,2]
[426800717,1782839440000,-360.1854904,0.00024887,2]
[426800719,1782839440000,-329.71766577,0.00024887,2]
[426800725,1782839440000,-204.71923249,0.00024887,2]
[426800721,1782839440000,-322.22018913,0.00024887,2]
[426800724,1782839440000,-192.96864756,0.00024887,2]
[426800730,1782839440000,-604.41652807,0.00025,2]
[426800731,1782839440000,-2000.0,0.00025,7]
[426800735,1782839440000,-513.98224291,0.00025588,2]
[426800733,1782839440000,-500.0,0.00025507,2]
[426800729,1782839440000,-175.0,0.00025,2]
[426800737,1782839440000,-208.33632084,0.00025589,2]
[426800734,1782839440000,-1786.63,0.00025534,2]
[426800739,1782839440000,-282.33385619,0.00025589,2]
[426800738,1782839440000,-162.02882278,0.00025589,2]
[426800736,1782839440000,-592.75230771,0.00025589,2]
[426800745,1782839440000,-180.75684066,0.00025589,2]
[426800740,1782839440000,-243.02762638,0.00025589,2]
[426800722,1782839440000,-199.69462588,0.00024887,2]
[426800728,1782839440000,-175.0,0.00025,2]
[426800726,1782839440000,-155.04098898,0.00024967,2]
[426800707,1782839440000,-160.0,0.0002484,3]
[426800727,1782839440000,-3675.97842959,0.00025,2]
[426800743,1782839440000,-210.72308864,0.00025589,2]
[426800702,1782839440000,-244.4757832,0.00024758,2]
[426800696,1782839440000,-336.7187446,0.00024758,2]
[426800697,1782839440000,-198.24972647,0.00024758,2]
[426800699,1782839440000,-375.403953,0.00024758,2]
[426800695,1782839440000,-313.36837693,0.00024754,2]
[426800701,1782839440000,-223.03990936,0.00024758,2]
[426800700,1782839440000,-340.44248566,0.00024758,2]
[426800698,1782839440000,-313.79577235,0.00024758,2]
[426800714,1782839440000,-181.92439338,0.00024887,2]
[426800723,1782839440000,-407.03753049,0.00024887,2]
[426800704,1782839440000,-324.77258471,0.00024758,2]
[426800706,1782839440000,-500.0,0.00024764,2]
[426800703,1782839440000,-339.20952853,0.00024758,2]
[426800712,1782839440000,-439.24337729,0.00024887,2]
[426800713,1782839440000,-444.98395728,0.00024887,2]
[426800709,1782839440000,-322.94004378,0.00024865,2]
[426800708,1782839440000,-180.34827971,0.00024848,2]
[426800711,1782839440000,-332.14482164,0.00024887,2]
[426800710,1782839440000,-396.7731498,0.00024887,2]
[426800715,1782839440000,-339.66636017,0.00024887,2]
[426800716,1782839440000,-207.66147991,0.00024887,2]
[426800705,1782839440000,-352.01481464,0.00024758,2]
[426800755,1782839440000,-514.67731975,0.00025589,2]
[426800759,1782839440000,-450.70261661,0.00025589,2]
[426800742,1782839440000,-479.30440012,0.00025589,2]
[426800774,1782839440000,-299.59514079,0.00025593,2]
[426800779,1782839440000,-563.1059295,0.00025593,2]
[426800778,1782839440000,-470.69365852,0.00025593,2]
[426800776,1782839440000,-159.77460004,0.00025593,2]
[426800777,1782839440000,-203.64751897,0.00025593,2]
[426800781,1782839440000,-205.96938935,0.00025593,2]
[426800782,1782839440000,-446.07981873,0.00025593,2]
[426800783,1782839440000,-488.95156639,0.00025593,2]
[426800784,1782839440000,-508.81429279,0.00025593,2]
[426800780,1782839440000,-510.66372849,0.00025593,2]
[426800786,1782839440000,-528.02222196,0.00025593,2]
[426800785,1782839440000,-487.15887707,0.00025593,2]
[426800788,1782839440000,-155.04098883,0.00025713,2]
[426800787,1782839440000,-295.56792002,0.00025593,2]
[426800790,1782839440000,-208.41608173,0.00025725,2]
[426800789,1782839440000,-244.86408903,0.00025725,2]
[426800792,1782839440000,-498.21723246,0.00025725,2]
[426800793,1782839440000,-156.81738704,0.00025725,2]
[426800794,1782839440000,-658.86506594,0.00025725,2]
[426800796,1782839440000,-667.47593592,0.00025725,2]
[426800751,1782839440000,-738.40201869,0.00025589,2]
[426800775,1782839440000,-396.49945294,0.00025593,2]
[426800773,1782839440000,-257.07052831,0.00025593,2]
[426800791,1782839440000,-595.1597247,0.00025725,2]
[426800770,1782839440000,-151.3056983,0.00025589,2]
[426800771,1782839440000,-190.88288657,0.00025593,2]
[426800756,1782839440000,-568.82731384,0.00025589,2]
[426800752,1782839440000,-878.83660087,0.00025589,2]
[426800741,1782839440000,-226.47113326,0.00025589,2]
[426800747,1782839440000,-316.59239636,0.00025589,2]
[426800749,1782839440000,-470.9868853,0.00025589,2]
[426800754,1782839440000,-241.92085371,0.00025589,2]
[426800753,1782839440000,-279.02764679,0.00025589,2]
[426800757,1782839440000,-152.65090083,0.00025589,2]
[426800758,1782839440000,-436.72870103,0.00025589,2]
[426800761,1782839440000,-191.0770232,0.00025589,2]
[426800750,1782839440000,-153.37221337,0.00025589,2]
[426800760,1782839440000,-506.12297853,0.00025589,2]
[426800764,1782839440000,-806.26606963,0.00025589,2]
[426800769,1782839440000,-278.99365433,0.00025589,2]
[426800767,1782839440000,-470.05256539,0.00025589,2]
[426800765,1782839440000,-241.81210488,0.00025589,2]
[426800768,1782839440000,-153.20533043,0.00025589,2]
[426800762,1782839440000,-717.67764671,0.00025589,2]
[426800763,1782839440000,-503.16134548,0.00025589,2]
[426800795,1782839440000,-227.14646136,0.00025725,2]
[426800766,1782839440000,-202.41552063,0.00025589,2]
[426800772,1782839440000,-505.0781169,0.00025593,2]
[426800818,1782839441000,-224.1,0.00026027,7]
[426800817,1782839441000,-681.23,0.00026027,7]
[426800826,1782839441000,-685.30965721,0.00026145,2]
[426800821,1782839441000,-1362.0,0.00026139,2]
[426800823,1782839441000,-1231.0,0.00026139,2]
[426800825,1782839441000,-216.0,0.00026139,2]
[426800828,1782839441000,-407.10233529,0.00026145,2]
[426800824,1782839441000,-6088.0,0.00026139,2]
[426800822,1782839441000,-283.0,0.00026139,2]
[426800830,1782839441000,-324.05764555,0.00026145,2]